Cogmind - Beta 12 @@@ ROGUE MODE // 2023.04.30 @ 12:51:27 Player: DreamweaverKara Result: Destroyed by Y-45 Defender with Beam Rifle Performance ------------- Evolutions (2) 1000 Regions Visited (4) 800 Robots Destroyed (17) 85 Value Destroyed (542) 542 Prototype IDs (4) 80 Alien Tech Used (0) 0 Bonus (25) 25 TOTAL SCORE: 2532 Bonus ------- Follower Combat Kills 25 Cogmind --------- Core Integrity 0/550 Matter 268/300 Energy 100/100 System Corruption 0% Temperature Cool (9) Movement Core (200) Ox3 Location -8/Materials Parts ------- > --- POWER (2) -------- (None) > --- PROPULSION (3) --- (None) > --- UTILITY (4) ------ Medium Storage Unit > --- WEAPON (2) ------- (None) > --- INVENTORY (10) --- Compact Wheel Targeting Computer Advanced Targeting Computer Advanced Targeting Computer Light Assault Rifle Improved Grenade Launcher Peak State ------------ > --- POWER ------------ Light Ion Engine > --- PROPULSION ------- Light Treads Light Treads Improved Treads > --- UTILITY ---------- Medium Storage Unit Targeting Computer Targeting Computer > --- WEAPON ----------- Improved Grenade Launcher Improved Grenade Launcher > --- INVENTORY -------- Light Ion Engine Aluminum Leg Aluminum Leg Compact Wheel Targeting Computer Light Assault Rifle Improved Grenade Launcher Improved Grenade Launcher [Rating: 15] Favorites ----------- Power Light Ion Engine Engine Light Ion Engine Propulsion Light Treads Treads Light Treads Leg Aluminum Leg Wheel Compact Wheel Utility Medium Storage Unit Storage Medium Storage Unit Processor Targeting Computer Weapon Improved Grenade Launcher Energy Gun EM Pulse Gun Ballistic Gun Light Assault Rifle Launcher Improved Grenade Launcher Build | -11 -10 -10 -9 -8 ------- Run | Jun Mat Min Mat Mat Slots Evolved 4 | . . . 2 2 Power 1 | . . . . 1 Propulsion 1 | . . . 1 . Utility 2 | . . . 1 1 Weapon . | . . . . . Parts Attached 24 | 5 1 3 11 4 Power 3 | 1 . . 2 . Engine 3 | 1 . . 2 . Core . | . . . . . Reactor . | . . . . . Propulsion 10 | 2 . 2 3 3 Treads 4 | . . . 3 1 Leg 4 | . . 2 . 2 Wheel 2 | 2 . . . . Hover . | . . . . . Flight . | . . . . . Utility 3 | . 1 . 2 . Device . | . . . . . Storage 1 | . 1 . . . Processor 2 | . . . 2 . Hackware . | . . . . . Protection . | . . . . . Artifact . | . . . . . Weapon 8 | 2 . 1 4 1 Energy Gun 3 | 2 . . 1 . Energy Cannon . | . . . . . Ballistic Gun 1 | . . . 1 . Ballistic Cannon . | . . . . . Launcher 4 | . . 1 2 1 Special Weapon . | . . . . . Impact Weapon . | . . . . . Slashing Weapon . | . . . . . Piercing Weapon . | . . . . . Special Melee Weapon . | . . . . . Unidentified Prototypes . | . . . . . Parts Lost 16 | . . 4 3 9 Power 3 | . . 1 2 . Propulsion 7 | . . 1 . 6 Utility . | . . . . . Weapon 6 | . . 2 1 3 Highest Loss Streak 4 | . . 4 1 3 To Critical Strikes . | . . . . . Average Slot Usage (%) 63 | . 82 53 89 38 Engine 4 | . 14 4 7 . Treads 15 | . . . 30 12 Leg 4 | . . 19 1 3 Wheel 3 | . 28 7 . . Storage 10 | . 11 14 11 9 Processor 6 | . . . 18 . Energy Gun 4 | . 28 6 2 . Ballistic Gun 1 | . . . 4 . Launcher 10 | . . . 13 13 Naked Turns . | . . . . . Heaviest Build 25 | 9 19 19 25 22 Greatest Support 63 | 26 26 26 63 63 Greatest Overweight (x) 3 | . . 1 . 3 Average Overweight (x) . | . . . . . Largest Inventory Capacity 10 | 5 10 10 10 10 Average Capacity 9 | 5 8 10 10 10 Most Carried 10 | 5 5 6 10 10 Average Carried 6 | 2 5 5 6 7 Final Capacity 10 | 5 10 10 10 10 Final Carried 10 | 5 5 5 10 6 Class Distribution -------------------- 100% | Mutant Dominant Class ---------------- Mutant | -10/Materials Mutant | -10/Mines Mutant | -9/Materials Mutant | -8/Materials Resources | -11 -10 -10 -9 -8 ----------- Run | Jun Mat Min Mat Mat Matter Collected 467 | 250 . . 124 93 Remotely . | . . . . . Salvage Created 386 | 41 . . 145 200 Parts 25 | 5 . . 8 12 Haulers Intercepted . | . . . . . Recyclers Shooed 1 | . . . 1 . Parts Field Recycled . | . . . . . Retrieved Matter . | . . . . . Parts Self-Destructed . | . . . . . Prevented . | . . . . . Kills | -11 -10 -10 -9 -8 ------- Run | Jun Mat Min Mat Mat Combat Hostiles Destroyed 12 | . . . 5 7 Guns 1 | . . . 1 . AOE 11 | . . . 4 7 Classes Destroyed 6 | 1 . . 5 . Tunneler 3 | 2 . . . 1 Recycler 1 | . . . 1 . Watcher 1 | . . . 1 . Swarmer 3 | . . . 3 . Grunt 7 | . . . 1 6 Sentry 2 | . . . 1 1 Best Kill Streak 6 | 2 . . 6 4 Combat Bots Only 4 | . . . 4 4 Max Kills in Single Turn 3 | 2 . . 2 3 Gunslinging . | . . . . . Exploded 3 | . . . 2 3 Melee . | . . . . . Uniques/NPCs Destroyed . | . . . . . Combat | -11 -10 -10 -9 -8 -------- Run | Jun Mat Min Mat Mat Damage Taken 2243 | 34 106 230 623 1250 Core 726 | . 8 67 100 551 Absorbed by Shields . | . . . . . Core Remaining (%) 81 | 100 . 70 75 . Volleys Fired 17 | 1 1 . 10 5 Largest 2 | 2 2 . 2 2 Hottest 80 | 80 80 . 56 72 Shots Fired 28 | 2 2 . 14 10 Gun 14 | 2 2 . 10 . Cannon . | . . . . . Launcher 14 | . . . 4 10 Special . | . . . . . Kinetic 10 | . . . 10 . Thermal . | . . . . . Explosive 14 | . . . 4 10 Electromagnetic 4 | 2 2 . . . Robot Hit Streak 15 | 2 1 . 9 15 Robot Miss Streak 2 | . 1 . 2 . Penetration Max . | . . . . . Secondary Targets . | . . . . . Shots Hit Robots 20 | 2 1 . 11 6 Core Hits 30 | 2 . . 10 18 Critical Kills . | . . . . . Critical Parts Destroyed . | . . . . . Critical Strikes . | . . . . . Melee Attacks . | . . . . . Impact . | . . . . . Slashing . | . . . . . Piercing . | . . . . . Sneak Attacks . | . . . . . Combat Hostiles . | . . . . . Follow-up Attacks . | . . . . . Damage Inflicted 1729 | 171 10 . 589 959 Guns 93 | 25 10 . 58 . Cannons . | . . . . . Explosions 1605 | 146 . . 529 930 Melee . | . . . . . Ramming 31 | . . . 2 29 Kinetic 58 | . . . 58 . Thermal 146 | 146 . . . . Explosive 1459 | . . . 529 930 Electromagnetic 35 | 25 10 . . . Impact . | . . . . . Slashing . | . . . . . Piercing . | . . . . . Highest Corruption 3 | . . 3 . . Average Corruption 3 | . . 3 . . Corruption Purged . | . . . . . Corruption Blocked . | . . . . . Effects 3 | . . 3 . . Message Errors 2 | . . 2 . . Matter Fused 1 | . . 1 . . Overload Shots . | . . . . . Overflow Damage 25 | 6 . . 15 4 Projectiles . | . . . . . Explosions 25 | 6 . . 15 4 Melee . | . . . . . Knockbacks . | . . . . . Impact . | . . . . . Kinetic . | . . . . . Secondary . | . . . . . Self-Inflicted Damage 70 | 34 . . . 36 Shots 2 | 1 . . . 1 Rammed 2 | . . . 1 1 Targets Rammed 16 | . . . 1 15 Kicked 14 | . . . . 14 Crushed . | . . . . . Highest Temperature 47 | 30 18 . 25 47 Average Temperature 15 | 24 12 . 11 17 Received Heat Transfer 522 | . 9 . 117 396 Siege Activations . | . . . . . Robots Corrupted . | . . . . . Combat Hostiles . | . . . . . Parts Fried . | . . . . . Impact Corruptions . | . . . . . Robots Melted . | . . . . . Combat Hostiles . | . . . . . Parts Melted . | . . . . . Heat Transferred 150 | 150 . . . . Parts Sabotaged . | . . . . . Parts Stolen . | . . . . . Parts Stripped . | . . . . . Power Chain Reactions 1 | 1 . . . . Missiles Intercepted . | . . . . . Alert | -11 -10 -10 -9 -8 ------- Run | Jun Mat Min Mat Mat Peak Influence 331 | 10 42 16 214 331 Initial 16 | . 6 16 . 1 Average 127 | . 10 3 134 211 Maximum Alert Level 1 | . . . 1 1 Low Security (%) 61 | 100 100 100 58 34 Level 1 38 | . . . 41 65 Level 2 . | . . . . . Level 3 . | . . . . . Level 4 . | . . . . . Level 5 . | . . . . . High Security . | . . . . . Max Security . | . . . . . Squads Dispatched 4 | . . . 1 3 Investigation 2 | . . . . 2 Extermination . | . . . . . Reinforcement 2 | . . . 1 1 Assault . | . . . . . Garrison . | . . . . . Intercept . | . . . . . Searches Triggered . | . . . . . Construction Impeded . | . . . . . Haulers Reinforced . | . . . . . Active Scanning Responses . | . . . . . Cargo Convoy Interrupts . | . . . . . Stealth | -11 -10 -10 -9 -8 --------- Run | Jun Mat Min Mat Mat Distress Signals 2 | . 2 . . . Communications Jammed . | . . . . . Distress Signals . | . . . . . Times Spotted 45 | . 6 10 10 19 Peak Tracking Total 10 | . 8 10 5 7 Tactical Retreats . | . . . . . Traps | -11 -10 -10 -9 -8 ------- Run | Jun Mat Min Mat Mat Traps Triggered 1 | . . . 1 . Indirectly . | . . . . . Trap Hack Attempts . | . . . . . Triggered . | . . . . . Disarmed . | . . . . . Reprogrammed . | . . . . . Reused . | . . . . . Traps Extracted . | . . . . . Installed . | . . . . . Triggered . | . . . . . Machines | -11 -10 -10 -9 -8 ---------- Run | Jun Mat Min Mat Mat Machines Disabled 6 | . . . 1 5 Max in Single Turn 2 | . . . 1 2 Machines Repaired . | . . . . . Machines Sabotaged . | . . . . . Overloaded Fab Kills . | . . . . . Hacking | -11 -10 -10 -9 -8 --------- Run | Jun Mat Min Mat Mat Machines Accessed 5 | . 2 . . 3 Terminals 5 | . 2 . . 3 Fabricators . | . . . . . Repair Stations . | . . . . . Recycling Units . | . . . . . Scanalyzers . | . . . . . Garrison Access . | . . . . . Total Hacks 15 | . 6 . . 9 Successful 7 | . 3 . . 4 Failed 8 | . 3 . . 5 Catastrophic 6 | . 1 . . 5 Database Lockouts . | . . . . . Manual . | . . . . . Terminals 15 | . 6 . . 9 Fabricators . | . . . . . Repair Stations . | . . . . . Recycling Units . | . . . . . Scanalyzers . | . . . . . Garrison Access . | . . . . . Terminal Hacks 7 | . 3 . . 4 Record 4 | . 2 . . 2 Prototype ID Bank 2 | . 1 . . 1 Zone Layout 1 | . . . . 1 Fabricator Hacks . | . . . . . Repair Station Hacks . | . . . . . Recycling Unit Hacks . | . . . . . Scanalyzer . | . . . . . Garrison Access Hacks . | . . . . . Unauthorized Hacks . | . . . . . Terminals . | . . . . . Fabricators . | . . . . . Repair Stations . | . . . . . Recycling Units . | . . . . . Scanalyzers . | . . . . . Garrison Access . | . . . . . Data Cores Recovered . | . . . . . Used . | . . . . . Hacking Detections 5 | . 2 . . 3 Full Trace Events 3 | . . . . 3 Feedback Events . | . . . . . Feedback Blocked . | . . . . . Robot Schematics Acquired . | . . . . . Robots Built . | . . . . . Authchips . | . . . . . Time . | . . . . . Total Robot Build Rating . | . . . . . Part Schematics Acquired . | . . . . . Parts Built . | . . . . . Authchips . | . . . . . Time . | . . . . . Total Part Build Rating . | . . . . . Parts Repaired . | . . . . . Time . | . . . . . Parts Recycled . | . . . . . Recycled Matter . | . . . . . Retrieved Matter . | . . . . . Retrieved Components . | . . . . . Parts Scanalyzed . | . . . . . Part Schematics Acquired . | . . . . . Parts Damaged . | . . . . . Bothacking | -11 -10 -10 -9 -8 ------------ Run | Jun Mat Min Mat Mat Used RIF Installer . | . . . . . Robots Hacked . | . . . . . Non-combat . | . . . . . Combat . | . . . . . Robot Hacks Applied . | . . . . . Relay Couplers Released . | . . . . . Fabnet Peak Effective % . | . . . . . Robots Rewired . | . . . . . Allies Hacked . | . . . . . Hacks Repelled . | . . . . . Allies | -11 -10 -10 -9 -8 -------- Run | Jun Mat Min Mat Mat Total Allies 2 | . . 2 . . Largest Group 2 | . . 2 1 . Highest-Rated Group 39 | . . 39 31 . Highest-Rated Ally 31 | . . 31 31 . Total Orders . | . . . . . Ally Attacks 7 | . . . 7 . Total Damage 85 | . . . 85 . Kills 1 | . . . 1 . Allies Corrupted . | . . . . . Allies Melted . | . . . . . Intel | -11 -10 -10 -9 -8 ------- Run | Jun Mat Min Mat Mat Robot Analysis Total . | . . . . . Derelict Logs Recovered 1 | . . 1 . . Drone Launches . | . . . . . Drone Recoveries . | . . . . . Exploration | -11 -10 -10 -9 -8 ------------- Run | Jun Mat Min Mat Mat Turns Passed 1162 | 52 104 169 403 434 Spaces Moved 719 | 41 94 139 220 225 Core 11 | 6 . . . 5 Treads 364 | . . . 201 163 Legs 164 | . . 88 19 57 Wheels 180 | 35 94 51 . . Hover . | . . . . . Flight . | . . . . . Fastest Speed 50 | 50 90 90 120 120 Average Speed 140 | 84 90 110 156 175 Slowest Speed 240 | 90 90 120 160 240 Overloaded Moves . | . . . . . Propulsion Burnouts . | . . . . . Robots Hopped . | . . . . . Cave-ins Triggered . | . . . . . Exploration Rate (%) 28 | 3 30 50 25 33 Regions Visited 4 Branch Regions 1 Pre-discovered Areas 1 | . . 1 . . Known Exits Taken . | . . . . . Unknown Exits Taken 4 | 1 1 1 1 . Scrap Searched . | . . . . . Spaces Dug 29 | . . . . 29 Terrain Destroyed 101 | 5 . . 38 58 Melee . | . . . . . Projectile . | . . . . . AOE 101 | 5 . . 38 58 Terrain Rammed . | . . . . . Walls Destroyed . | . . . . . Machines Disabled . | . . . . . Actions | -11 -10 -10 -9 -8 --------- Run | Jun Mat Min Mat Mat Total 839 | 56 110 154 268 251 Wait 37 | . 15 12 10 . Move 715 | 40 93 138 219 225 Hop . | . . . . . Pick Up 25 | 10 . 1 13 1 Fast Attach 1 | . 1 . . . Attach 20 | 5 . 1 10 4 Detach 2 | . . . 2 . Swap 3 | . . 2 1 . Drop 3 | . . . 2 1 Fire 17 | 1 1 . 10 5 Melee . | . . . . . Ram 1 | . . . . 1 Kick 14 | . . . . 14 Crush 1 | . . . 1 . Escape Stasis . | . . . . . Rewire . | . . . . . Trap . | . . . . . Miscellaneous . | . . . . . Route ------- -11/Junkyard -10/Materials -10/Mines -9/Materials -8/Materials History --------- Turn | Location | Event 25 | -11/Junkyard | Discovered new exit (range 16) 53 | -11/Junkyard | Entered Materials 141 | -10/Materials | Discovered new exit (range 11) 157 | -10/Materials | Entered Mines 175 | -10/Mines | Assembled infested the area 192 | -10/Mines | Received a Rocket Launcher from a helpful Derelict 236 | -10/Mines | Lost 4 parts (1p1n2w) 305 | -10/Mines | Build established: Mutant 317 | -10/Mines | Discovered new exit (range 9) 326 | -10/Mines | Entered Materials 326 | -9/Materials | Accompanied by 1 ally 326 | -9/Materials | Evolved 2 slots: Propulsion x1, Utility x1 331 | -9/Materials | Led the pair of lost Derelicts to an unsafe place 611 | -9/Materials | Discovered new exit (range 16) 729 | -9/Materials | Entered another Materials area 729 | -8/Materials | Evolved 2 slots: Power x1, Utility x1 924 | -8/Materials | Lost 3 parts (2n1w) 1095 | -8/Materials | Lost 3 parts (1n2w) 1155 | -8/Materials | Core integrity fell below 50% 1161 | -8/Materials | Core integrity fell below 20% 1163 | -8/Materials | Destroyed by Y-45 Defender with Beam Rifle Last Messages --------------- 01074_ U-05 Engineer builds a Wall. 01078_ U-05 Engineer lays Concrete. 01080_ Connecting with Terminal... 01080_ Terminal unresponsive. 01080_ U-05 Engineer lays Concrete. 01082_ U-05 Engineer builds a Wall. 01087_ U-05 Engineer lays Concrete. 01089_ U-05 Engineer builds a Wall. 01111_ Critical hit (Burn: +37). 01116_ Matter Pump disabled. 01121_ Kicked Y-45 Defender out of the way. 01135_ Kicked Y-45 Defender. 01136_ Aluminum Leg destroyed. 01137_ Kicked Y-45 Defender. 01148_ Slug penetrates Wall. 01149_ Kicked Y-45 Defender. 01151_ Penetrated by Slug. 01151_ Aluminum Leg destroyed. 01151_ Slammed into Y-45 Defender. 01157_ Acquired 5 matter. Map ----- +----------------------------------------------------+ | ???#?????????????????????????????????????????????? | | ???#? ???????????????????????????????????????????? | | ??## ???????????????????????????????????????????? | | ### #????????????????????????????????????????? | | % #????????????????????????????????????????? | | ! ???????????????????????????????????????? | | #????????????????????????????????????????? | | ### #????????????????????????????????????????? | | ##?????????????????????????????????????????????? | | ##?????????????????????????????????????????????? | | ###??????? ???????????????????????????????????? | | ###??????# ?????#####?????????????????????????? | | ##????????# ????? #?????????????????????????? | | #?????????# ???? #?????????????????????????? | | ########### # #?????????????????????????? | | [ """ ? """ #?????????????????????????? | | "Y" + """"" #?????????????????????????? | | ]] # """"" |#?????????????????????????? | | ]] # """"" #?????????????????????????? | | ]] # """ #?????????????????????????? | | """ # % #?????????????????????????? | | """ ######+ ##?????????????????????????? | | %"" #???## #???????????????????????????? | | ! ##### ###?????????????????????????? | | uH% Y ###+#######???????????????? | | + ######## ####Y @ ????????? | | #?????# #??# T ????????? | | #?????# #??# ggg ????????? | | " % #?????# #??# #### #####+######?????????? | | T ####### #??###+###??? #????????????????????? | | " + #?????????????#????????????????????? | | # #??????????????????????????????????? | | ##### #??????????????????????????????????? | | #??????????????????????????????????? | | ########### #??????????????????????????????????? | | ??????????# #??????????????????????????????????? | | ??????????# #??????????????????????????????????? | | ??????????# #??????????????????????????????????? | | ??????????# #??????????????????????????????????? | | ?????????? ] ??????????????????????????????????? | | ?????????? ?????????????????????????????????? | | ?????????? ????????????????????????????????? | | ????????? = ????????????????????????????????? | | ?????????# ###???????????????????????????????? | | ?????????#######?????????????????????????????????? | | ?????????????????????????????????????????????????? | | ?????????????????????????????????????????????????? | | ?????????????????????????????????????????????????? | | ?????????????????????????????????????????????????? | | ?????????????????????????????????????????????????? | +----------------------------------------------------+ Best States ------------- Heat Dissipation 31 Energy Generation 10 Energy Capacity 250 Matter Stores 300 Matter Capacity 300 Sight Range 16 Terrain Scan Density 10 Evasion (%) 55 Targeting Accuracy 10 Recoil Reduction 3 Item Schematics ----------------- None Robot Schematics ------------------ None Fabricated ------------ Nothing Alien Tech Used ----------------- None Achievements -------------- None Challenges ------------ None Game ------ Seed WaveReinforcedNanovents Manual? 0 Play Time 00:17:53 Cumulative 15.3 hours Start 2023.04.30 @ 12:33:39 End 2023.04.30 @ 12:51:27 Sessions 1 Manual Loads 0 Difficulty Rogue Special Mode None Game No. 57 Rogue 57 Adventurer 0 Explorer 0 Win Type - Total 0 Types 0/0/0/0/0/0/0/0/0 Lore% 12 Gallery% 23 Achievement% 18 Wizard Run 0 Options --------- ASCII 1 Keyboard 0 Movement Mouse Keybinds 0 Fullscreen 2 Font 16/Terminus Map View 76x50 Tactical HUD 1 Map Filters NONE Filters NONE Steam 1 RUN: 3ba01530-3f49-469c-b6aa-2d1e3fbaac6e